bitfinex/quotes_SOLUSD_20241205
["timestamp","ask_amount","ask_price","bid_price","bid_amount"]
[1733362385473,0.7461859,224.97,224.82,0.88694746]
[1733362385772,6.2842,224.98,224.82,0.88694746]
[1733362386960,0.7461859,224.97,224.82,0.88694746]
[1733362387286,20.0,224.95,224.82,0.88694746]
[1733362387451,0.7461859,224.94,224.82,0.88694746]
[1733362387780,0.7461859,224.94,224.76,0.88706755]
[1733362389654,0.7461859,224.94,224.78,20.0]
[1733362389966,0.7461859,224.94,224.79,0.88716153]
[1733362390148,0.7461859,224.94,224.81,20.0]
[1733362390354,0.7461859,224.97,224.82,0.8869845]
[1733362391267,6.2842,224.98,224.83,20.0]
[1733362391483,3.6312,225.0,224.84,0.8866561]
[1733362391683,3.6312,225.0,224.84,5.95227746]
[1733362391848,3.6312,225.0,224.87,20.0]
[1733362392054,6.3068,225.05,224.88,0.88661268]
[1733362392253,6.3068,225.05,224.92,20.0]
[1733362392489,3.8603,225.08,224.93,20.88643984]
[1733362392783,6.0924,225.14,224.95,20.0]
[1733362392967,6.0924,225.14,224.97,20.0]
[1733362393158,6.0924,225.14,225.02,135.8]
[1733362393382,6.0924,225.14,225.03,0.8861913]
[1733362393898,6.0924,225.14,225.03,20.8861913]
[1733362394389,3.8603,225.17,225.03,31.9954913]
[1733362394882,1.0125259,225.16,225.03,20.8861913]
[1733362395091,1.0125259,225.16,225.03,0.8861913]
[1733362395255,1.0125259,225.16,225.0,0.8862765]
[1733362395455,1.0125259,225.16,224.95,11.1134]
[1733362395456,1.0125259,225.16,224.96,0.88633177]
[1733362395855,20.0,225.12,224.92,0.88655992]
[1733362396156,1.0125259,225.11,224.92,0.88655992]
[1733362396360,20.0,225.12,224.93,11.1145]
[1733362396676,1.0125259,225.14,224.94,0.88628448]
[1733362397182,6.6259,225.15,224.96,20.0]
[1733362397424,6.6259,225.15,224.98,20.0]
[1733362397560,6.6259,225.15,225.01,20.0]
[1733362397878,6.6259,225.15,225.06,20.0]
[1733362398181,6.6259,225.15,225.07,0.88598546]
[1733362399281,6.1741,225.21,225.07,0.88598546]
[1733362399577,6.1741,225.21,225.08,0.88572694]
[1733362400493,6.1741,225.21,225.13,20.0]
[1733362400783,6.1741,225.29,225.14,0.88559248]
[1733362400952,6.1741,225.29,225.17,20.0]
[1733362401178,6.1741,225.29,225.23,135.8]
[1733362401498,3.8311,225.3,225.24,0.88530882]
[1733362401872,6.2411,225.36,225.24,0.88530882]
[1733362402383,6.2411,225.36,225.28,20.0]
[1733362402593,4.1758274,225.39,225.29,0.88507556]
[1733362402969,0.5320274,225.39,225.3,0.12549]
[1733362403276,0.5320274,225.39,225.34,20.0]
[1733362403472,0.5320274,225.39,225.35,0.884757]
[1733362403773,6.2411,225.49,225.36,20.0]
[1733362403980,6.2411,225.49,225.39,20.0]
[1733362404192,6.2411,225.49,225.4,0.88452999]
[1733362404386,6.2411,225.49,225.41,20.0]
[1733362404593,6.2411,225.49,225.37,0.88469595]
[1733362405183,6.2411,225.49,225.4,135.8]
[1733362405384,6.2411,225.49,225.41,0.88471257]
[1733362406977,3.6438,225.55,225.44,20.0]
[1733362407194,6.0326,225.58,225.45,20.88443664]
[1733362407614,1.0125259,225.57,225.45,20.88443664]
[1733362407782,1.0125259,225.57,225.45,0.88443664]
[1733362408181,1.0125259,225.57,225.46,0.88454411]
[1733362408401,6.0326,225.58,225.46,0.88454411]
[1733362409186,6.0326,225.58,225.47,0.88437863]
[1733362409395,0.5320274,225.62,225.49,20.0]
[1733362409599,0.5320274,225.62,225.5,26.38308383]
[1733362410125,0.5320274,225.62,225.51,20.0]
[1733362410283,0.5320274,225.62,225.56,20.0]
[1733362410487,9.9347,225.75,225.59,20.0]
[1733362410811,9.9347,225.75,225.63,20.0]
[1733362411114,9.9347,225.75,225.64,0.88363602]
[1733362411316,9.9347,225.75,225.58,20.0]
[1733362411317,1.0125259,225.72,225.61,0.88363602]
[1733362412112,1.0125259,225.72,225.51,31.0859]
[1733362412113,1.0125259,225.72,225.52,0.88395645]
[1733362412317,1.0125259,225.72,225.56,20.0]
[1733362412612,1.0125259,225.72,225.57,0.88394338]
[1733362413309,9.9347,225.75,225.61,20.0]
[1733362413495,9.9347,225.75,225.62,0.88374731]
[1733362413884,9.9347,225.75,225.65,135.8]
[1733362414108,9.9347,225.75,225.66,0.8836073]
[1733362414986,9.9347,225.75,225.62,0.88371497]
[1733362417326,9.9347,225.75,225.63,0.88388495]
[1733362418116,1.0125259,225.74,225.63,0.88388495]
[1733362418331,1.0125259,225.72,225.54,0.88393434]
[1733362418541,9.9347,225.75,225.55,11.084]
[1733362418830,9.9347,225.75,225.58,0.12549]
[1733362419001,9.9347,225.75,225.6,0.12549]
[1733362419330,6.3309,225.81,225.62,0.12549]
[1733362419496,6.3309,225.81,225.63,23.902374]
[1733362419701,6.3309,225.81,225.66,20.0]
[1733362420007,6.3309,225.81,225.67,0.88345706]
[1733362421309,6.3309,225.81,225.7,20.0]
[1733362421516,6.3309,225.81,225.71,0.88345782]
[1733362424025,6.3309,225.81,225.67,0.88361095]
[1733362424199,1.0125259,225.8,225.67,0.88361095]
[1733362424611,6.3309,225.81,225.67,0.88361095]
[1733362424813,6.3309,225.81,225.68,0.88359728]
[1733362425223,6.3309,225.81,225.69,20.0]
[1733362425428,6.3309,225.81,225.7,0.88347469]
[1733362426001,6.3309,225.81,225.72,20.0]
[1733362426238,6.3309,225.81,225.72,20.88339234]
[1733362428232,6.3309,225.81,225.75,20.0]
[1733362428406,6.3309,225.81,225.76,0.88325061]
[1733362429340,6.3309,225.81,225.72,0.88332772]
[1733362429519,6.3309,225.81,225.74,20.0]
[1733362429714,6.3309,225.81,225.75,0.88330517]
[1733362430417,3.8391,225.83,225.8,135.8]
[1733362430734,0.5320274,225.84,225.81,0.88318774]
[1733362431242,6.2909,225.94,225.81,0.88318774]
[1733362431539,6.2909,225.94,225.85,20.0]
[1733362431736,6.2909,225.94,225.86,0.88280363]
[1733362432106,6.2909,225.94,225.8,0.88295909]
[1733362432312,1.0125259,225.93,225.8,0.88295909]
[1733362432525,6.2909,225.94,225.8,0.88295909]
[1733362432843,1.0125259,225.93,225.8,0.88295909]
[1733362433011,6.2909,225.94,225.8,0.88295909]
[1733362433213,1.0125259,225.93,225.8,0.88295909]
[1733362434910,1.0125259,225.93,225.74,0.88329233]
[1733362436044,1.0125259,225.93,225.7,11.0766]
[1733362436211,1.0125259,225.93,225.71,0.88332954]
[1733362436708,1.0125259,225.93,225.75,20.0]
[1733362436911,1.0125259,225.93,225.76,0.8833681]
[1733362437809,3.6402,225.98,225.8,20.0]
[1733362438029,3.6402,225.98,225.82,20.0]
[1733362438227,3.6402,225.98,225.84,20.0]
[1733362438420,3.6402,225.98,225.85,0.88278447]
[1733362439040,3.6402,225.98,225.89,20.0]
[1733362439339,3.6402,225.98,225.9,0.88270958]
[1733362439928,3.6402,225.98,225.89,20.0]
[1733362440544,1.0125259,225.97,225.8,20.88291518]
[1733362440917,1.0125259,225.97,225.8,0.88291518]
[1733362441226,3.6402,225.98,225.81,11.0712]
[1733362441425,3.6402,225.98,225.82,0.88294397]
[1733362442145,1.0125259,225.97,225.82,0.88294397]
[1733362442343,1.0125259,225.97,225.78,0.88319226]
[1733362442719,1.0125259,225.97,225.73,11.0749]
[1733362442918,21.0125259,225.97,225.74,0.88332302]
[1733362443347,20.0,225.96,225.74,0.88332302]
[1733362443645,20.0,225.91,225.71,0.88344907]
[1733362443848,1.0125259,225.9,225.7,0.88354786]
[1733362444057,21.0125259,225.9,225.66,0.88364388]
[1733362445017,1.0125259,225.9,225.68,11.0771]
[1733362445217,1.0125259,225.9,225.71,20.0]
[1733362445412,1.0125259,225.9,225.72,0.88349094]
[1733362446119,1.0125259,225.9,225.71,20.0]
[1733362446334,1.0125259,225.9,225.72,0.8836386]
[1733362447234,1.0125259,225.93,225.72,0.8836386]
[1733362447555,10.2384,225.94,225.75,20.0]
[1733362447755,10.2384,225.94,225.76,20.88309208]
[1733362448049,1.0125259,225.93,225.76,0.88309208]
[1733362448217,10.2384,225.94,225.8,20.0]
[1733362448418,10.2384,225.94,225.81,0.88310031]
[1733362448623,1.0125259,225.93,225.8,20.0]
[1733362449116,20.0,225.91,225.65,0.8832853]
[1733362449318,1.0125259,225.9,225.65,0.8832853]
[1733362449536,1.0125259,225.9,225.66,11.0786]
[1733362449746,1.0125259,225.9,225.67,0.88364555]
[1733362449987,20.0,225.89,225.67,0.88364555]
[1733362450249,10.4465,225.87,225.63,0.88374522]
[1733362450423,20.0,225.84,225.63,0.88374522]
[1733362450615,1.0125259,225.83,225.63,0.88374522]
[1733362450815,1.0125259,225.83,225.58,22.1644]
[1733362450816,20.0,225.82,225.6,0.88385067]
[1733362451027,3.8733,225.79,225.6,0.88385067]
[1733362451229,1.0125259,225.78,225.6,0.88385067]
[1733362451920,1.0125259,225.78,225.54,11.0842]
[1733362451921,20.0,225.77,225.55,0.88412078]
[1733362452121,1.0125259,225.76,225.55,0.88412078]
[1733362452643,1.0125259,225.76,225.56,11.0835]
[1733362452950,1.0125259,225.76,225.57,0.88408027]
[1733362453125,1.0125259,225.76,225.49,0.88418532]
[1733362453321,1.0125259,225.76,225.5,9.87474]
[1733362453516,1.0125259,225.76,225.51,0.88418876]
[1733362454173,1.0125259,225.76,225.51,39.14178876]
[1733362454343,1.0125259,225.78,225.54,5.0]
[1733362454541,1.0125259,225.78,225.55,6.08946559]
[1733362454765,1.0125259,225.78,225.57,5.0]
[1733362454974,1.0125259,225.78,225.58,0.88372455]
[1733362455268,1.0125259,225.78,225.6,20.0]
[1733362455583,1.0125259,225.78,225.58,0.88372455]
[1733362455584,1.0125259,225.78,225.64,20.0]
[1733362455757,1.0125259,225.78,225.58,20.0]
[1733362456065,1.0125259,225.78,225.59,0.88402035]
[1733362456278,1.0125259,225.78,225.62,20.0]
[1733362456566,1.0125259,225.78,225.63,0.88388192]
[1733362457502,1.0125259,225.78,225.66,20.0]
[1733362457773,3.8733,225.79,225.67,0.88373654]
[1733362458843,1.0125259,225.78,225.67,0.88373654]
[1733362459075,3.8733,225.79,225.71,20.0]
[1733362459257,1.0125259,225.78,225.69,0.88361738]
[1733362459677,1.0125259,225.78,225.67,20.0]
[1733362459850,1.0125259,225.78,225.6,0.88371392]
[1733362460549,1.0125259,225.78,225.56,11.0835]
[1733362460749,1.0125259,225.78,225.57,23.04981468]
[1733362460943,3.8733,225.79,225.6,5.0]
[1733362461172,3.8733,225.79,225.63,20.0]
[1733362461379,1.0125259,225.78,225.64,20.88364158]
[1733362461885,1.0125259,225.78,225.64,0.88364158]
[1733362462287,1.0125259,225.78,225.62,11.0803]
[1733362462288,1.0125259,225.78,225.65,20.0]
[1733362462771,1.0125259,225.78,225.65,11.9630138]
[1733362463284,1.0125259,225.78,225.68,20.0]
[1733362463451,1.0125259,225.78,225.68,20.88374742]
[1733362463775,3.8733,225.79,225.68,20.88374742]
[1733362464169,1.0125259,225.78,225.68,20.88374742]
[1733362464349,1.0125259,225.78,225.65,11.0791]
[1733362464549,1.0125259,225.78,225.59,0.88376627]
[1733362464550,1.0125259,225.78,225.61,11.0809]
[1733362464857,1.0125259,225.78,225.62,0.88392738]
[1733362465256,1.0125259,225.78,225.59,0.88389725]
[1733362465769,1.0125259,225.78,225.6,11.0815]
[1733362465954,1.0125259,225.78,225.61,0.88393912]
[1733362466275,1.0125259,225.78,225.56,11.0834]
[1733362466276,20.0,225.77,225.56,11.0834]
[1733362466476,1.0125259,225.76,225.57,0.88410982]
[1733362467087,20.0,225.72,225.52,11.96932955]
[1733362467285,1.0125259,225.71,225.52,11.96932955]
[1733362467461,21.0125259,225.71,225.52,11.96932955]
[1733362468681,1.0125259,225.71,225.55,31.0837]
[1733362468853,1.0125259,225.73,225.56,0.8841375]
[1733362469378,4.6586259,225.74,225.56,0.8841375]
[1733362469553,3.6461,225.74,225.56,0.8841375]
[1733362469754,1.0125259,225.73,225.56,0.8841375]
[1733362470582,1.0125259,225.73,225.55,31.0837]
[1733362470971,20.0,225.72,225.55,31.0837]
[1733362471168,1.0125259,225.71,225.56,0.88421879]
[1733362472075,1.0125259,225.71,225.6,20.0]
[1733362472282,1.0125259,225.73,225.61,0.8840804]
[1733362472684,3.6461,225.74,225.61,0.8840804]
[1733362473067,1.0125259,225.73,225.61,0.8840804]
[1733362473687,3.6461,225.74,225.65,20.0]
[1733362473887,1.0125259,225.73,225.63,0.88381509]
[1733362474882,1.0125259,225.73,225.65,20.0]
[1733362475181,3.6461,225.74,225.66,0.88397466]
[1733362475565,6.3175,225.75,225.66,0.88397466]
[1733362475763,1.0125259,225.93,225.66,20.88397466]
[1733362475974,5.0,225.92,225.68,20.0]
[1733362476162,5.0,225.9,225.68,20.0]
[1733362476355,1.0125259,225.89,225.68,20.0]
[1733362476560,1.0125259,225.89,225.73,20.0]
[1733362476761,1.0125259,225.89,225.68,20.0]
[1733362477066,5.0,225.88,225.68,20.0]
[1733362477263,1.0125259,225.87,225.68,20.0]
[1733362477888,20.0,225.85,225.68,20.0]
[1733362478060,1.0125259,225.84,225.68,20.0]
[1733362478686,3.6421,225.83,225.69,0.88377488]
[1733362478876,6.2875,225.82,225.69,0.88377488]
[1733362479274,6.2875,225.82,225.69,20.88377488]
[1733362479494,6.2875,225.82,225.71,20.0]
[1733362479664,6.2875,225.82,225.72,0.8834198]
[1733362480032,6.2875,225.82,225.76,20.0]
[1733362480784,1.0125259,225.81,225.72,20.0]
[1733362481387,1.0125259,225.81,225.73,0.88366197]
[1733362481592,6.2875,225.82,225.72,20.88359698]
[1733362481969,6.2875,225.82,225.73,11.0751]
[1733362482392,1.0125259,225.81,225.73,11.0751]
[1733362482589,3.7874,225.92,225.77,20.12549]
[1733362482789,3.7874,225.92,225.81,20.0]
[1733362483097,3.7874,225.92,225.82,0.88291934]
[1733362483595,3.7874,225.92,225.86,20.0]
[1733362483800,6.6224,225.96,225.87,0.88292501]
[1733362484002,6.6224,225.96,225.86,20.0]
[1733362484492,6.6224,225.96,225.84,0.8829442]
[1733362484798,6.6224,225.96,225.83,11.0702]
[1733362485580,6.6224,225.96,225.75,33.2224]
[1733362485898,6.6224,225.96,225.76,0.88331499]
[1733362486595,6.6224,225.96,225.77,5.0]
[1733362486793,6.6224,225.96,225.82,20.0]
[1733362487106,6.6224,225.96,225.83,0.88280813]
[1733362487478,6.6224,225.96,225.87,20.0]
[1733362487801,6.6224,225.96,225.85,0.8830228]
[1733362488472,6.6224,225.96,225.8,20.0]
[1733362488677,6.6224,225.96,225.81,0.88313788]
[1733362489605,6.6224,225.96,225.82,0.88309257]
[1733362489779,6.6224,225.96,225.82,34.09529257]
[1733362490180,6.6224,225.96,225.85,20.0]
[1733362490371,6.6224,225.96,225.86,0.88300822]
[1733362491403,6.6224,225.96,225.85,31.0689]
[1733362493220,6.6224,225.96,225.87,11.0683]
[1733362494484,6.6224,225.96,225.88,0.88291133]
[1733362494814,6.6224,225.96,225.9,20.0]
[1733362495103,6.6224,225.96,225.87,11.0683]
[1733362496304,6.6224,225.96,225.87,0.88292624]
[1733362496482,6.6224,225.96,225.85,20.88299026]
[1733362498206,6.6224,225.96,225.8,0.8830468]
[1733362498383,6.6224,225.96,225.74,11.9576504]
[1733362498587,3.7912,225.95,225.74,11.9576504]
[1733362499701,6.5108,225.94,225.74,11.9576504]
[1733362501390,6.5108,225.94,225.77,20.0]
[1733362501607,6.5108,225.94,225.78,0.88333939]
[1733362502492,6.5108,225.94,225.82,20.0]
[1733362502814,6.5108,225.94,225.83,0.88302819]
[1733362503420,3.7912,225.95,225.84,20.0]
[1733362503622,3.7912,225.95,225.85,0.88279219]
[1733362504092,3.7912,225.95,225.8,0.88311122]
[1733362504607,6.3057,225.94,225.75,11.074]
[1733362504827,6.3057,225.94,225.76,0.88332066]
[1733362505387,6.3057,225.94,225.77,11.0732]
[1733362505602,6.3057,225.94,225.78,0.88308079]
[1733362505914,6.3057,225.94,225.81,0.12549]
[1733362506117,6.5092,226.0,225.84,20.12549]
[1733362506284,6.5092,226.0,225.86,20.0]
[1733362506489,6.5092,226.0,225.88,20.0]
[1733362506705,6.5092,226.0,225.89,0.88260223]
[1733362506912,3.7112,226.02,225.89,0.88260223]
[1733362507423,3.7112,226.02,225.93,20.0]
[1733362507595,3.7112,226.02,225.94,0.88250485]
[1733362508293,0.5320274,226.06,225.94,0.88250485]
[1733362509016,0.5320274,226.06,225.96,20.0]
[1733362509213,0.5320274,226.06,225.98,20.0]
[1733362509517,0.5320274,226.06,225.9,0.88258193]
[1733362509890,6.1776,226.05,225.9,0.88258193]
[1733362510204,6.1776,226.05,225.91,11.0663]
[1733362510390,6.1776,226.05,225.92,0.88255995]
[1733362510786,6.1776,226.05,225.88,0.88282224]
[1733362511016,6.1776,226.05,225.89,11.0673]
[1733362511322,0.5320274,226.06,225.9,0.88262971]
[1733362511497,0.5320274,226.06,225.92,22.49556125]
[1733362511696,0.5320274,226.06,225.97,5.0]
[1733362512009,0.5320274,226.06,225.98,6.08777396]
[1733362512317,0.5320274,226.06,226.01,20.0]
[1733362512495,0.5320274,226.06,226.05,20.0]
[1733362512697,0.5320274,226.06,226.05,20.88212189]
[1733362513307,0.5320274,226.06,226.05,0.88212189]
[1733362513494,0.5320274,226.06,226.02,0.88232434]
[1733362514405,0.5320274,226.06,225.84,6.5437]
[1733362514406,10.0741,226.05,225.95,0.88251673]
[1733362514709,10.0741,226.05,225.81,5.0]
[1733362514710,10.0741,226.05,225.91,0.88264244]
[1733362514910,10.0741,226.05,225.86,0.88280685]
[1733362515128,3.6916,226.0,225.79,0.88296748]
[1733362515300,11.6369,225.99,225.79,0.88296748]
[1733362515624,20.0,225.96,225.79,0.88296748]
[1733362515912,3.8113,225.93,225.75,0.88317141]
[1733362516089,3.8113,225.93,225.67,11.0781]
[1733362516418,26.3333,225.91,225.68,0.8833935]
[1733362516609,20.0,225.88,225.68,0.8833935]
[1733362516809,10.0,225.86,225.64,0.88359329]
[1733362517013,5.0,225.82,225.59,0.8837599]
[1733362517209,6.3333,225.81,225.59,0.8837599]
[1733362517542,20.0,225.78,225.59,0.8837599]
[1733362517730,3.8113,225.77,225.54,0.88396632]
[1733362518018,5.0,225.73,225.5,0.88414644]
[1733362518219,25.0,225.7,225.5,0.88414644]
[1733362518518,25.0,225.7,225.46,0.88437805]
[1733362519191,5.0,225.73,225.46,0.88437805]
[1733362519192,20.0,225.69,225.46,0.88437805]
[1733362519396,10.0,225.75,225.47,0.88434914]
[1733362519710,20.0,225.7,225.47,0.88434914]
[1733362520023,20.0,225.72,225.47,0.88434914]
[1733362520412,20.0,225.7,225.48,0.88434294]
[1733362520793,11.2599,225.69,225.48,0.88434294]
[1733362520995,20.0,225.55,225.39,0.88445016]
[1733362521196,5.0,225.62,225.34,0.88445016]
[1733362521418,20.0,225.61,225.34,0.88445016]
[1733362522104,20.0,225.61,225.35,0.8846863]
[1733362522307,3.5645,225.64,225.35,0.8846863]
[1733362522308,3.5645,225.64,225.36,5.0]
[1733362522516,3.5645,225.64,225.39,20.0]
[1733362522716,3.5645,225.64,225.4,0.884505]
[1733362523130,3.5645,225.64,225.41,20.0]
[1733362523316,3.5645,225.64,225.42,20.88437994]
[1733362523798,3.5645,225.64,225.42,0.88437994]
[1733362524306,3.5645,225.64,225.43,20.8846161]
[1733362524809,23.5645,225.64,225.43,20.8846161]
[1733362525394,23.5645,225.64,225.35,17.748628]
[1733362525395,20.0,225.61,225.41,0.88458822]
[1733362525611,5.0,225.6,225.36,0.88477276]
[1733362525805,20.0,225.56,225.3,11.0961]
[1733362526111,20.0,225.56,225.31,0.88497306]
[1733362526527,20.0,225.57,225.31,0.88497306]
[1733362526832,20.0,225.56,225.31,0.88497306]
[1733362527725,5.0,225.57,225.31,0.88497306]
[1733362527932,25.0,225.55,225.31,0.88497306]
[1733362528223,20.0,225.51,225.32,0.8850976]
[1733362528605,20.0,225.49,225.29,0.88508816]
[1733362531012,8.3371,225.5,225.28,0.5320274]
[1733362531013,25.0,225.47,225.28,0.5320274]
[1733362531733,20.0,225.43,225.28,0.5320274]
[1733362531903,20.0,225.41,225.28,0.5320274]
[1733362532309,20.0,225.28,225.06,0.5320274]
[1733362532508,20.0,225.28,225.07,0.88598698]
[1733362533029,20.0,225.37,225.07,11.99358698]
[1733362533207,5.0,225.34,225.07,11.99358698]
[1733362533525,5.0,225.33,225.07,11.99358698]
[1733362534039,5.0,225.27,225.07,0.88598698]
[1733362534233,9.767,225.4,225.06,0.5320274]
[1733362534234,25.0,225.25,225.06,0.5320274]
[1733362534445,5.0,225.22,225.06,0.5320274]
[1733362534617,20.0,225.21,225.06,0.5320274]
[1733362535225,26.2883,225.21,225.06,0.5320274]
[1733362535435,20.0,225.19,225.06,0.5320274]
[1733362535731,20.0,225.18,225.06,0.5320274]
[1733362536314,5.0,225.17,225.06,0.5320274]
[1733362536506,20.0,225.18,225.06,0.5320274]
[1733362536704,5.0,225.17,225.06,0.5320274]
[1733362537334,20.0,225.18,225.06,0.5320274]
[1733362537720,20.0,225.16,225.06,0.5320274]
[1733362538209,25.0,225.16,225.06,0.5320274]
[1733362538405,5.0,225.14,225.06,0.5320274]
[1733362538917,25.0,225.11,225.06,0.5320274]
[1733362539116,20.0,225.11,225.06,0.5320274]
[1733362539934,20.0,225.15,225.06,0.5320274]
[1733362540325,20.0,225.14,225.06,0.5320274]
[1733362540529,6.2883,225.21,225.06,0.5320274]
[1733362542935,5.0,225.2,225.06,0.5320274]
[1733362543308,25.0,225.18,225.06,0.5320274]
[1733362543612,20.0,225.18,225.06,0.5320274]
[1733362544444,6.2883,225.21,225.06,0.5320274]
[1733362545515,5.0,225.18,225.06,0.5320274]
[1733362546131,5.0,225.15,225.06,0.5320274]
[1733362546334,20.0,225.17,225.06,0.5320274]
[1733362547135,25.0,225.17,225.06,0.5320274]
[1733362547839,20.0,225.18,225.06,0.5320274]
[1733362548538,5.0,225.16,225.06,0.5320274]
[1733362549023,20.0,225.17,225.06,0.5320274]
[1733362549736,20.0,225.18,225.06,0.5320274]
[1733362550140,6.2883,225.21,225.06,0.5320274]
[1733362550713,0.17978002,225.09,225.06,0.5320274]
[1733362551137,0.17978002,225.09,225.07,0.88627831]
[1733362551533,0.17978002,225.09,225.07,20.88627831]
[1733362551733,6.5605,225.29,225.07,20.88627831]
[1733362552327,6.5605,225.29,225.07,0.88627831]
[1733362553613,20.0,225.26,225.07,0.88627831]
[1733362554045,3.5608,225.32,225.08,11.1071]
[1733362554339,3.5608,225.32,225.15,20.0]
[1733362554545,3.6265,225.4,225.16,0.88563027]
[1733362554737,3.6265,225.4,225.16,25.88563027]
[1733362554927,6.2917,225.45,225.18,25.0]
[1733362555242,3.6265,225.49,225.16,0.88563027]
[1733362555243,8.6265,225.49,225.2,20.0]
[1733362555541,5.0,225.44,225.21,0.88533321]
[1733362555747,5.0,225.46,225.21,0.88553539]
[1733362556244,5.0,225.48,225.21,0.88553539]
[1733362556637,20.0,225.46,225.24,20.0]
[1733362556943,5.0,225.42,225.12,6.0726]
[1733362557134,5.0,225.42,225.15,20.0]
[1733362557334,5.0,225.42,225.16,0.88559121]
[1733362557543,20.0,225.38,225.16,0.88559121]
[1733362557847,5.0,225.33,225.13,0.88574134]
[1733362558036,20.0,225.34,225.13,0.88574134]
[1733362559418,20.0,225.34,225.15,20.0]
[1733362559947,23.4265,225.33,225.12,6.0726]
[1733362560148,20.0,225.3,225.12,6.0726]
[1733362560945,23.4265,225.33,225.12,6.0726]
[1733362561248,23.4265,225.33,225.13,0.8858732]
[1733362561545,6.2572,225.37,225.15,20.0]
[1733362561747,6.2572,225.37,225.16,0.8855941]
[1733362562047,6.2572,225.37,225.15,20.0]
[1733362562232,5.0,225.32,225.12,6.0726]
[1733362562435,5.0,225.25,225.06,0.5320274]
[1733362562761,20.0,225.24,225.06,0.5320274]
[1733362563123,20.0,225.26,225.06,0.5320274]
[1733362563620,25.0,225.24,225.06,0.5320274]
[1733362563944,20.0,225.24,225.06,0.5320274]
[1733362564261,20.0,225.23,225.06,0.5320274]
[1733362564542,20.0,225.23,225.07,20.0]
[1733362564752,3.4265,225.25,225.08,0.88605077]
[1733362565630,10.0,225.32,225.08,0.88605077]
[1733362565836,5.0,225.3,225.08,0.88605077]
[1733362566140,20.0,225.29,225.08,0.88605077]
[1733362566344,25.0,225.3,225.08,0.88605077]
[1733362566549,5.0,225.27,225.08,0.88605077]
[1733362566743,25.0,225.29,225.06,0.5320274]
[1733362566932,20.0,225.28,225.07,0.88619795]
[1733362567127,25.0,225.28,225.07,0.88619795]
[1733362567329,3.2998,225.33,225.07,0.88619795]
[1733362567949,5.0,225.4,225.1,20.0]
[1733362568140,3.4285,225.41,225.11,0.88560779]
[1733362568650,3.4285,225.41,225.17,2.4755]
[1733362568862,8.4407,225.5,225.18,20.8854745]
[1733362569158,3.4407,225.5,225.18,20.8854745]
[1733362569453,3.4407,225.5,225.22,6.4697]
[1733362569656,3.4407,225.5,225.25,20.0]
[1733362569858,3.4407,225.5,225.26,0.88512785]
[1733362570848,10.0,225.49,225.26,0.88512785]
[1733362571159,20.0,225.48,225.26,0.88512785]
[1733362571451,3.4407,225.5,225.26,0.88512785]
[1733362571756,3.4407,225.5,225.26,20.88512785]
[1733362572629,5.0,225.49,225.26,0.88512785]
[1733362573155,20.0,225.48,225.26,0.88512785]
[1733362573355,20.0,225.47,225.26,0.88512785]
[1733362573529,25.0,225.43,225.22,6.4697]
[1733362573731,20.0,225.37,225.15,6.2444]
[1733362574263,20.0,225.35,225.15,6.2444]
[1733362574650,5.0,225.3,225.09,2.4755]
[1733362574957,20.0,225.29,225.09,2.4755]
[1733362575158,20.0,225.3,225.09,2.4755]
[1733362575331,25.0,225.3,225.09,2.4755]
[1733362575759,20.0,225.31,225.09,3.36155973]
[1733362576452,3.5876,225.34,225.09,3.36155973]
[1733362576656,3.5876,225.34,225.12,20.0]
[1733362576845,5.0,225.41,225.12,20.0]
[1733362576846,6.0593,225.42,225.13,0.885605]
[1733362577041,6.0593,225.42,225.13,20.885605]
[1733362577596,6.0593,225.42,225.15,20.0]
[1733362577733,3.3285,225.43,225.17,6.5359]
[1733362578056,3.5775,225.52,225.21,2.4755]
[1733362578262,8.5775,225.52,225.22,0.88523971]